bitfinex/quotes_SOLUSD_20230105
["timestamp","ask_amount","ask_price","bid_price","bid_amount"]
[1672932445398,171.0367,13.359,13.343,20.0]
[1672932445607,171.0367,13.359,13.343,42.41737149]
[1672932445817,22.41737149,13.357,13.343,20.0]
[1672932446051,132.69497149,13.356,13.342,20.0]
[1672932446369,132.69497149,13.356,13.342,22.41737149]
[1672932446562,110.2776,13.356,13.343,20.0]
[1672932447113,110.2776,13.356,13.345,20.0]
[1672932447642,110.2776,13.356,13.347,20.0]
[1672932447850,110.2776,13.356,13.346,22.41737149]
[1672932448041,110.2776,13.356,13.347,22.41737149]
[1672932448252,114.8467,13.359,13.347,22.41737149]
[1672932448253,56.17,13.362,13.348,20.0]
[1672932448459,117.1428,13.366,13.349,76.23]
[1672932448673,117.1428,13.366,13.349,98.64737149]
[1672932448884,12.84,13.36,13.346,56.24]
[1672932449103,12.84,13.36,13.342,56.26]
[1672932449418,117.1428,13.359,13.343,40.0]
[1672932449633,117.1428,13.359,13.345,20.0]
[1672932450266,117.1428,13.359,13.346,56.24]
[1672932450476,117.1428,13.359,13.344,56.25]
[1672932450690,117.1428,13.359,13.345,20.0]
[1672932450895,139.56017149,13.359,13.345,20.0]
[1672932451220,20.0,13.358,13.345,20.0]
[1672932451437,20.0,13.358,13.342,20.0]
[1672932451645,66.19,13.358,13.342,20.0]
[1672932452037,88.60737149,13.358,13.342,20.0]
[1672932452900,37.0,13.357,13.342,20.0]
[1672932453108,20.0,13.355,13.338,20.0]
[1672932453299,56.21,13.354,13.338,20.0]
[1672932453717,78.62737149,13.354,13.338,20.0]
[1672932453945,22.41737149,13.353,13.338,20.0]
[1672932454186,22.41737149,13.353,13.339,20.0]
[1672932454371,56.21,13.354,13.34,20.0]
[1672932454886,110.4601,13.356,13.34,20.0]
[1672932455102,110.4601,13.356,13.341,20.0]
[1672932455411,110.4601,13.356,13.342,20.0]
[1672932456254,110.4601,13.356,13.343,20.0]
[1672932457087,110.4601,13.356,13.342,20.0]
[1672932459090,110.4601,13.356,13.343,20.0]
[1672932459535,110.4601,13.356,13.345,20.0]
[1672932461620,110.4601,13.356,13.344,20.0]
[1672932462034,110.4601,13.356,13.342,20.0]
[1672932463091,110.4601,13.356,13.343,20.0]
[1672932463416,110.4601,13.356,13.345,20.0]
[1672932463924,110.4601,13.356,13.344,20.0]
[1672932465519,110.4601,13.356,13.342,20.0]
[1672932466153,12.84,13.35,13.334,38.91997595]
[1672932466344,230.5822,13.349,13.334,20.0]
[1672932466775,56.89220402,13.349,13.34,20.0]
[1672932466984,12.84,13.35,13.34,20.0]
[1672932467892,56.2,13.355,13.34,42.41737149]
[1672932467914,110.4601,13.356,13.341,56.26]
[1672932468142,110.4601,13.356,13.342,20.0]
[1672932468882,110.4601,13.356,13.342,136.6947]
[1672932469102,110.4601,13.356,13.344,20.0]
[1672932469737,110.4601,13.356,13.343,20.0]
[1672932470694,110.4601,13.356,13.341,20.0]
[1672932471122,56.2,13.355,13.341,20.0]
[1672932471425,132.87747149,13.356,13.341,20.0]
[1672932471828,110.4601,13.356,13.341,20.0]
[1672932472458,56.2,13.355,13.341,20.0]
[1672932474570,110.4601,13.356,13.341,20.0]
[1672932474790,110.4601,13.356,13.342,20.0]
[1672932475529,110.4601,13.356,13.343,20.0]
[1672932475734,110.4601,13.356,13.344,20.0]
[1672932480248,110.4601,13.356,13.343,20.0]
[1672932481400,110.4601,13.356,13.344,20.0]
[1672932481840,12.85,13.36,13.344,20.0]
[1672932482037,56.14,13.369,13.345,137.57734744]
[1672932482361,173.3732,13.369,13.345,115.15997595]
[1672932482560,22.41737149,13.368,13.346,22.41737149]
[1672932482771,56.15,13.367,13.347,76.24]
[1672932483091,56.15,13.367,13.348,42.41737149]
[1672932483310,78.56737149,13.368,13.349,20.0]
[1672932483624,78.56737149,13.368,13.35,20.0]
[1672932483836,78.56737149,13.368,13.351,20.0]
[1672932484250,12.84,13.36,13.346,134.25057149]
[1672932484461,56.19,13.359,13.346,111.8332]
[1672932484668,78.60737149,13.359,13.346,111.8332]
[1672932485288,22.41737149,13.359,13.346,111.8332]
[1672932485721,56.19,13.359,13.346,111.8332]
[1672932486136,12.84,13.36,13.346,111.8332]
[1672932486337,56.18,13.361,13.347,20.0]
[1672932486550,168.8646,13.362,13.347,20.0]
[1672932486864,112.6946,13.362,13.347,42.41737149]
[1672932487069,56.17,13.362,13.347,42.41737149]
[1672932487289,108.8592,13.363,13.347,42.41737149]
[1672932488025,108.8592,13.363,13.349,20.0]
[1672932489506,108.8592,13.363,13.348,40.0]
[1672932489698,42.41737149,13.362,13.347,56.24]
[1672932489914,42.41737149,13.362,13.346,111.8332]
[1672932489915,98.58737149,13.362,13.346,111.8332]
[1672932490117,20.0,13.362,13.346,111.8332]
[1672932491600,42.41737149,13.362,13.346,111.8332]
[1672932493266,56.18,13.361,13.346,111.8332]
[1672932493698,78.59737149,13.361,13.346,111.8332]
[1672932494214,20.0,13.36,13.346,111.8332]
[1672932494963,142.9778,13.36,13.344,56.25]
[1672932495182,142.9778,13.36,13.342,115.6205]
[1672932495183,78.60737149,13.359,13.342,115.6205]
[1672932495372,78.60737149,13.359,13.343,20.0]
[1672932495605,56.19,13.359,13.343,20.0]
[1672932495816,56.19,13.359,13.344,20.0]
[1672932496018,142.9878,13.36,13.344,20.0]
[1672932496229,142.9878,13.36,13.343,63.11737149]
[1672932496878,142.9878,13.36,13.343,40.7]
[1672932497590,56.19,13.359,13.343,20.0]
[1672932497943,42.41737149,13.358,13.343,20.0]
[1672932499172,78.60737149,13.357,13.342,20.0]
[1672932499386,20.0,13.356,13.342,20.0]
[1672932499810,42.41737149,13.356,13.342,20.0]
[1672932500019,160.92497149,13.356,13.342,20.0]
[1672932500855,138.5076,13.356,13.342,20.0]
[1672932501507,194.7076,13.356,13.342,20.0]
[1672932502139,160.92497149,13.356,13.342,20.0]
[1672932502334,20.0,13.354,13.342,20.0]
[1672932504862,217.12497149,13.356,13.342,42.41737149]
[1672932505080,118.5076,13.356,13.342,42.41737149]
[1672932505897,118.5076,13.356,13.343,17.0]
[1672932506124,118.5076,13.356,13.344,20.0]
[1672932506325,118.5076,13.356,13.345,17.0]
[1672932507701,118.5076,13.356,13.345,39.41737149]
[1672932509581,118.5076,13.356,13.345,17.0]
[1672932510527,118.5076,13.356,13.347,20.0]
[1672932510856,38.02,13.36,13.348,17.0]
[1672932511047,56.15,13.368,13.349,20.0]
[1672932511257,56.15,13.368,13.349,42.41737149]
[1672932511464,20.0,13.367,13.349,42.41737149]
[1672932511694,56.16,13.366,13.349,42.41737149]
[1672932511903,56.16,13.366,13.349,20.0]
[1672932512119,56.16,13.366,13.35,22.41737149]
[1672932512309,20.0,13.368,13.351,20.0]
[1672932512524,56.15,13.367,13.352,20.0]
[1672932512733,56.15,13.367,13.352,42.41737149]
[1672932512942,56.15,13.367,13.353,22.41737149]
[1672932513252,169.5867,13.367,13.354,20.0]
[1672932513483,20.0,13.366,13.354,20.0]
[1672932513681,20.0,13.366,13.354,42.41737149]
[1672932516727,20.0,13.366,13.354,20.0]
[1672932516936,20.0,13.366,13.351,20.0]
[1672932517148,20.0,13.366,13.352,76.21]
[1672932517359,20.0,13.366,13.353,20.0]
[1672932517576,20.0,13.366,13.353,42.41737149]
[1672932517901,20.0,13.366,13.354,22.41737149]
[1672932518229,20.0,13.366,13.353,20.0]
[1672932518412,20.0,13.364,13.351,20.0]
[1672932518738,20.0,13.364,13.35,20.0]
[1672932519059,20.0,13.362,13.35,20.0]
[1672932519697,20.0,13.362,13.348,112.9255]
[1672932519896,38.3,13.36,13.346,56.24]
[1672932520739,38.3,13.36,13.346,78.65737149]
[1672932520937,38.3,13.36,13.346,56.24]
[1672932521147,38.3,13.36,13.346,78.65737149]
[1672932521877,174.3503,13.363,13.347,20.0]
[1672932522097,118.1803,13.363,13.349,20.0]
[1672932522409,118.1803,13.363,13.35,56.22]
[1672932522634,118.1803,13.363,13.351,20.0]
[1672932523371,118.1803,13.363,13.35,76.22]
[1672932524737,118.1803,13.363,13.35,20.0]
[1672932524953,20.0,13.362,13.35,20.0]
[1672932527165,118.1803,13.363,13.35,20.0]
[1672932527361,118.1803,13.363,13.35,76.22]
[1672932527683,118.1803,13.363,13.35,20.0]
[1672932529572,118.1803,13.363,13.35,76.22]
[1672932529891,118.1803,13.363,13.35,20.0]
[1672932535364,118.1803,13.363,13.351,20.0]
[1672932535587,118.1803,13.363,13.352,76.21]
[1672932535803,118.1803,13.363,13.353,20.0]
[1672932535981,118.1803,13.363,13.354,20.0]
[1672932541362,118.1803,13.363,13.354,76.21]
[1672932542203,118.1803,13.363,13.354,20.0]
[1672932542619,118.1803,13.363,13.354,76.21]
[1672932542822,118.1803,13.363,13.353,20.0]
[1672932543249,156.439,13.37,13.353,42.41737149]
[1672932543455,117.9909,13.375,13.354,56.21]
[1672932543664,117.9909,13.375,13.356,20.0]
[1672932543866,117.9909,13.375,13.357,76.19]
[1672932544080,20.0,13.374,13.358,138.2606]
[1672932544519,20.0,13.374,13.359,20.0]
[1672932544736,20.0,13.374,13.359,42.41737149]
[1672932545259,117.9909,13.375,13.359,42.41737149]
[1672932545786,117.9909,13.375,13.36,22.41737149]
[1672932545995,12.73,13.37,13.353,56.21]
[1672932546185,130.0924,13.37,13.353,56.21]
[1672932546397,130.0924,13.37,13.353,78.62737149]
[1672932546617,130.0924,13.37,13.354,20.0]
[1672932546821,130.0924,13.37,13.355,56.2]
[1672932547676,130.0924,13.37,13.354,42.41737149]
[1672932549882,130.0924,13.37,13.354,22.41737149]
[1672932550095,20.0,13.368,13.354,22.41737149]
[1672932551461,20.0,13.368,13.352,113.687]
[1672932551657,20.0,13.368,13.353,20.0]
[1672932554933,17.0,13.367,13.353,20.0]
[1672932555144,20.0,13.366,13.353,20.0]
[1672932555982,20.0,13.366,13.354,17.0]
[1672932556197,138.3078,13.369,13.354,39.41737149]
[1672932556198,174.4478,13.369,13.354,39.41737149]
[1672932556407,118.3078,13.369,13.354,39.41737149]
[1672932556618,20.0,13.368,13.354,39.41737149]
[1672932556833,20.0,13.368,13.354,17.0]
[1672932560411,20.0,13.366,13.353,20.0]
[1672932560724,17.0,13.365,13.353,20.0]
[1672932560940,17.0,13.365,13.351,20.0]
[1672932561146,17.0,13.365,13.35,76.22]
[1672932563983,12.73,13.36,13.347,56.23]
[1672932564190,37.0,13.359,13.345,50.0]
[1672932564401,93.19,13.359,13.345,50.0]
[1672932564610,37.0,13.359,13.345,50.0]
[1672932565233,20.0,13.359,13.345,50.0]
[1672932566088,20.0,13.359,13.346,17.0]
[1672932567670,20.0,13.357,13.345,50.0]
[1672932567977,20.0,13.355,13.345,50.0]
[1672932570483,20.0,13.355,13.346,17.0]
[1672932571034,20.0,13.355,13.345,50.0]
[1672932576172,20.0,13.353,13.345,50.0]
[1672932576382,17.0,13.352,13.345,50.0]
[1672932577544,20.0,13.353,13.345,50.0]
[1672932578807,20.0,13.351,13.345,50.0]
[1672932578998,17.0,13.35,13.345,50.0]
[1672932579964,42.41737149,13.351,13.345,50.0]
[1672932580271,20.0,13.351,13.345,50.0]
[1672932583001,20.0,13.354,13.345,50.0]
[1672932583931,42.41737149,13.358,13.345,50.0]
[1672932583932,109.637,13.357,13.346,56.24]
[1672932584144,12.68,13.36,13.347,20.0]
[1672932584349,12.68,13.36,13.348,76.23]
[1672932586158,35.09737149,13.36,13.348,56.23]
[1672932586463,20.0,13.359,13.346,56.24]
[1672932587085,42.41737149,13.359,13.346,56.24]
[1672932587299,20.0,13.357,13.345,50.0]
[1672932587506,132.7242,13.356,13.345,50.0]
[1672932587728,20.0,13.355,13.345,50.0]
[1672932587937,17.0,13.354,13.345,50.0]
[1672932588567,20.0,13.353,13.345,50.0]
[1672932591101,17.0,13.352,13.345,50.0]
[1672932591717,17.0,13.352,13.345,27.9328]
[1672932591929,20.0,13.351,13.345,27.9328]
[1672932592142,17.0,13.35,13.345,27.9328]
[1672932593097,20.0,13.351,13.345,27.9328]
[1672932596551,17.0,13.35,13.345,27.9328]
[1672932597402,20.0,13.349,13.345,0.0028]
[1672932597613,17.0,13.348,13.345,0.0028]
[1672932597821,20.0,13.347,13.345,0.0028]
[1672932598236,17.0,13.346,13.345,0.0028]
[1672932600351,20.0,13.345,13.335,56.29]
[1672932600550,17.0,13.344,13.334,20.0]
[1672932601105,20.0,13.345,13.335,56.29]
[1672932602146,20.0,13.347,13.335,56.29]
[1672932602365,227.9883,13.349,13.335,56.29]
[1672932602673,76.2,13.355,13.336,20.0]
[1672932602883,76.2,13.355,13.337,56.28]
[1672932602884,114.8727,13.355,13.337,56.28]
[1672932603093,114.8727,13.355,13.341,20.0]
[1672932603406,115.7242,13.356,13.342,56.26]
[1672932603620,115.7242,13.356,13.343,20.0]
[1672932603830,115.7242,13.356,13.345,20.0]
[1672932604145,115.7242,13.356,13.346,56.24]
[1672932604553,115.7242,13.356,13.344,56.25]
[1672932605312,12.68,13.36,13.344,56.25]
[1672932605506,20.0,13.361,13.345,20.0]
[1672932605707,20.0,13.361,13.346,56.24]
[1672932605917,20.0,13.361,13.347,20.0]
[1672932606139,20.0,13.361,13.348,56.23]
[1672932606551,56.16,13.366,13.35,20.0]
[1672932606859,20.0,13.367,13.351,56.22]
[1672932607075,20.0,13.365,13.345,56.24]
[1672932607283,76.16,13.364,13.345,56.24]
[1672932607499,20.0,13.362,13.345,56.24]
[1672932607714,20.0,13.362,13.344,56.25]
[1672932607922,139.8212,13.362,13.344,56.25]
[1672932608120,139.8212,13.362,13.345,20.0]
[1672932608438,20.0,13.362,13.347,20.0]
[1672932608647,20.0,13.362,13.348,56.23]
[1672932608872,20.0,13.362,13.346,56.24]
[1672932609085,20.0,13.362,13.345,56.24]
[1672932612651,42.41737149,13.362,13.345,56.24]
[1672932613182,20.0,13.362,13.345,56.24]
[1672932613716,42.41737149,13.362,13.345,56.24]
[1672932614553,20.0,13.36,13.345,56.24]
[1672932615393,32.68,13.36,13.345,56.24]
[1672932615837,17.0,13.359,13.345,56.24]
[1672932616029,20.0,13.358,13.345,56.24]
[1672932619618,256.8008,13.363,13.345,56.24]
[1672932619619,116.9796,13.363,13.345,56.24]
[1672932619853,116.9796,13.363,13.346,20.0]
[1672932620127,116.9796,13.363,13.347,20.0]
[1672932620337,116.9796,13.363,13.348,76.23]
[1672932621077,116.9796,13.363,13.349,17.0]
[1672932621309,116.9796,13.363,13.35,76.22]
[1672932621512,116.9796,13.363,13.351,17.0]
[1672932621716,20.0,13.362,13.352,56.21]
[1672932621926,20.0,13.362,13.353,20.0]
[1672932623093,20.0,13.36,13.344,56.25]
[1672932623285,20.0,13.36,13.344,115.5967]
[1672932623491,20.0,13.36,13.345,56.24]
[1672932623805,20.0,13.36,13.346,20.0]
[1672932624010,20.0,13.36,13.347,56.24]
[1672932624231,135.8155,13.361,13.347,56.24]
[1672932624441,135.8155,13.361,13.348,17.0]
[1672932624648,20.0,13.36,13.348,17.0]
[1672932626215,55.09737149,13.36,13.345,56.24]
[1672932626443,55.09737149,13.36,13.346,17.0]
[1672932626656,55.09737149,13.36,13.347,56.24]
[1672932626852,20.0,13.36,13.347,56.24]
[1672932627054,20.0,13.36,13.348,17.0]
[1672932627259,116.9796,13.363,13.349,20.0]
[1672932627474,108.224,13.367,13.35,93.22]
[1672932628107,20.0,13.366,13.35,93.22]
[1672932628321,20.0,13.366,13.351,118.3027]
[1672932628639,20.0,13.366,13.352,93.21]
[1672932631903,20.0,13.369,13.353,20.0]
[1672932632119,20.0,13.369,13.354,76.21]
[1672932632315,20.0,13.369,13.354,56.21]
[1672932632522,20.0,13.369,13.353,56.21]
[1672932632731,20.0,13.369,13.354,20.0]
[1672932632947,20.0,13.369,13.355,56.2]
[1672932634516,121.7417,13.37,13.355,56.2]
[1672932635674,56.11,13.376,13.355,56.2]
[1672932635887,20.0,13.375,13.357,20.0]
[1672932636216,20.0,13.375,13.359,20.0]
[1672932636419,20.0,13.375,13.36,76.18]
[1672932637043,20.0,13.375,13.361,20.0]
[1672932637249,20.0,13.375,13.362,76.17]
[1672932638331,20.0,13.376,13.362,76.17]
[1672932638840,17.5,13.376,13.362,76.17]
[1672932639684,20.0,13.379,13.362,76.17]
[1672932640648,173.75947149,13.38,13.362,76.17]
[1672932641588,20.0,13.379,13.362,76.17]
[1672932642443,20.0,13.376,13.362,76.17]
[1672932644112,260.74947149,13.38,13.362,76.17]
[1672932644318,131.2421,13.38,13.363,20.0]
[1672932644530,20.0,13.376,13.364,76.16]
[1672932644939,153.65947149,13.38,13.365,20.0]
[1672932645148,12.75,13.38,13.366,56.16]
[1672932645364,173.9018,13.386,13.368,20.0]
[1672932645580,117.8318,13.386,13.369,76.14]
[1672932647569,117.8318,13.386,13.37,20.0]
[1672932647785,117.8318,13.386,13.371,76.13]
[1672932648844,20.0,13.383,13.371,20.0]
[1672932649039,20.0,13.383,13.369,20.0]
[1672932649249,20.0,13.383,13.37,56.14]
[1672932649457,20.0,13.383,13.371,20.0]
[1672932650095,12.73,13.38,13.363,114.8422]
[1672932650300,56.1,13.379,13.363,114.8422]
[1672932650527,20.0,13.378,13.363,114.8422]
[1672932650738,109.5064,13.377,13.363,171.0122]
[1672932651062,20.0,13.376,13.363,171.0122]
[1672932651676,109.5064,13.377,13.363,171.0122]
[1672932651898,109.5064,13.377,13.364,20.0]
[1672932652317,109.5064,13.377,13.366,20.0]
[1672932652522,109.5064,13.377,13.365,56.16]
[1672932652940,20.0,13.376,13.364,56.16]
[1672932653147,20.0,13.376,13.362,114.2434]
[1672932653577,20.0,13.376,13.363,56.17]
[1672932653902,109.5064,13.377,13.363,56.17]
[1672932654097,20.0,13.376,13.364,20.0]
[1672932654308,20.0,13.376,13.363,76.17]
[1672932654516,20.0,13.376,13.363,20.0]
[1672932654832,20.0,13.376,13.363,76.17]
[1672932655161,20.0,13.376,13.363,20.0]
[1672932656822,20.0,13.376,13.363,76.17]
[1672932658623,20.0,13.376,13.363,20.0]
[1672932658823,17.0,13.375,13.363,20.0]
[1672932659036,20.0,13.374,13.358,20.0]
[1672932659238,42.41737149,13.374,13.359,56.19]
[1672932659471,42.41737149,13.374,13.36,20.0]
[1672932659773,17.0,13.373,13.358,56.19]
[1672932660089,38.19,13.37,13.353,56.21]
[1672932660306,20.0,13.369,13.355,20.0]
[1672932660615,20.0,13.369,13.356,56.2]
[1672932660826,20.0,13.369,13.353,20.0]
[1672932661041,20.0,13.369,13.354,56.21]
[1672932661235,20.0,13.369,13.354,57.51335243]
[1672932661449,20.0,13.369,13.355,1.20735243]
[1672932661647,20.0,13.369,13.353,20.0]
[1672932661861,42.41737149,13.369,13.354,56.21]
[1672932662091,20.0,13.367,13.353,1.20735243]
[1672932662278,20.0,13.367,13.352,57.41735243]
[1672932663343,20.0,13.367,13.353,20.0]
[1672932663554,20.0,13.367,13.354,1.20735243]
[1672932665749,20.0,13.368,13.354,57.41735243]
[1672932666496,20.0,13.368,13.354,1.20735243]
[1672932666704,20.0,13.368,13.354,0.83819906]
[1672932666922,20.0,13.368,13.354,57.04819906]
[1672932667449,109.5064,13.377,13.354,102.36744704]
[1672932667648,109.5064,13.377,13.356,20.0]
[1672932667649,109.9242,13.376,13.356,20.0]
[1672932667862,109.9242,13.376,13.357,76.19]
[1672932668180,109.9242,13.376,13.358,20.0]
[1672932668371,109.9242,13.376,13.359,56.19]
[1672932668585,109.9242,13.376,13.36,20.0]
[1672932668826,20.0,13.375,13.361,56.18]
[1672932669006,20.0,13.375,13.362,20.0]
[1672932669216,20.0,13.375,13.363,56.17]
[1672932669421,20.0,13.375,13.364,20.0]
[1672932670078,20.0,13.375,13.361,20.0]
[1672932670387,109.9242,13.376,13.362,76.17]
[1672932672910,109.9242,13.376,13.363,20.0]
[1672932673121,109.9242,13.376,13.364,56.16]
[1672932673334,109.9242,13.376,13.365,20.0]
[1672932674382,109.9242,13.376,13.364,56.16]
[1672932675645,109.9242,13.376,13.364,20.0]
[1672932675854,109.9242,13.376,13.365,56.16]
[1672932676279,109.9242,13.376,13.366,20.0]
[1672932677212,109.9242,13.376,13.365,56.16]
[1672932678274,109.5064,13.377,13.365,56.16]
[1672932678493,112.2389,13.381,13.366,20.0]
[1672932678703,112.2389,13.381,13.368,20.0]
[1672932678891,112.2389,13.381,13.369,76.14]
[1672932679100,112.2389,13.381,13.37,20.0]
[1672932679311,112.2389,13.381,13.371,20.0]
[1672932679742,56.07,13.387,13.371,76.13]
[1672932679956,117.3015,13.386,13.371,76.13]
[1672932680160,20.0,13.385,13.371,20.0]
[1672932680579,20.0,13.385,13.369,76.14]
[1672932681326,117.3015,13.386,13.369,76.14]
[1672932681725,117.3015,13.386,13.37,20.0]
[1672932681949,117.3015,13.386,13.371,76.13]
[1672932682169,117.3015,13.386,13.371,20.0]
[1672932682482,117.3015,13.386,13.368,20.0]
[1672932682680,117.3015,13.386,13.369,76.14]
[1672932682884,117.3015,13.386,13.37,20.0]
[1672932683642,20.0,13.383,13.368,20.0]
[1672932686688,20.0,13.383,13.369,56.14]
[1672932686883,20.0,13.383,13.37,20.0]
[1672932687529,20.0,13.383,13.368,20.0]
[1672932688255,56.09,13.382,13.364,56.16]
[1672932688462,20.0,13.381,13.364,56.16]
[1672932689099,110.8258,13.38,13.364,56.16]
[1672932689309,20.0,13.379,13.364,56.16]
[1672932690667,110.8258,13.38,13.365,22.41737149]
[1672932690871,56.08,13.383,13.366,56.16]
[1672932691081,20.0,13.383,13.368,20.0]
[1672932691304,20.0,13.383,13.369,56.14]
[1672932691506,20.0,13.383,13.37,20.0]
[1672932691951,20.0,13.383,13.368,76.15]
[1672932692160,20.0,13.383,13.368,186.44]
[1672932695312,22.41737149,13.382,13.368,56.15]
[1672932695510,20.0,13.381,13.364,56.16]
[1672932695838,42.41737149,13.381,13.364,56.16]
[1672932696146,20.0,13.381,13.364,56.16]
[1672932697522,42.41737149,13.381,13.364,56.16]
[1672932697720,20.0,13.379,13.364,56.16]
[1672932698265,20.0,13.379,13.363,118.1314]
[1672932698266,78.52737149,13.378,13.363,174.3014]
[1672932698489,20.0,13.379,13.364,20.0]
[1672932698669,20.0,13.379,13.365,56.16]
[1672932704453,20.0,13.379,13.364,76.16]
[1672932706046,146.2789,13.38,13.365,22.41737149]
[1672932706252,146.2789,13.38,13.366,56.16]
[1672932706977,20.0,13.379,13.366,56.16]
[1672932707384,20.0,13.379,13.365,56.16]
[1672932715598,20.0,13.379,13.364,76.16]
[1672932715806,42.41737149,13.379,13.364,76.16]
[1672932716021,20.0,13.377,13.364,76.16]
[1672932716232,134.8747,13.377,13.364,20.0]
[1672932716441,134.8747,13.377,13.363,20.0]
[1672932719285,20.0,13.375,13.363,20.0]
[1672932719507,17.0,13.374,13.363,20.0]
[1672932719684,17.0,13.374,13.362,20.0]
[1672932719894,42.41737149,13.375,13.362,20.0]
[1672932720124,20.0,13.375,13.362,76.17]
[1672932723396,20.0,13.375,13.362,20.0]
[1672932723703,17.0,13.374,13.362,20.0]
[1672932723915,42.41737149,13.375,13.36,20.0]
[1672932724123,42.41737149,13.375,13.361,56.18]
[1672932724327,42.41737149,13.375,13.362,20.0]
[1672932724540,20.0,13.375,13.362,20.0]
[1672932725077,20.0,13.375,13.36,20.0]
[1672932725262,137.5274,13.375,13.361,56.18]
[1672932725472,137.5274,13.375,13.362,20.0]
[1672932726022,137.5274,13.375,13.36,20.0]
[1672932726235,137.5274,13.375,13.361,56.18]
[1672932726541,20.0,13.374,13.361,56.18]
[1672932726755,20.0,13.369,13.355,56.2]
[1672932726968,20.0,13.369,13.353,0.83819906]
[1672932727273,20.0,13.367,13.354,0.83819906]
[1672932727491,20.0,13.367,13.352,76.21]
[1672932727672,20.0,13.367,13.353,0.83819906]
[1672932728320,17.0,13.366,13.353,0.83819906]
[1672932728535,17.0,13.366,13.352,57.04819906]
[1672932728730,20.0,13.367,13.352,57.04819906]
[1672932729376,17.0,13.366,13.352,0.83819906]
[1672932729572,20.0,13.365,13.352,20.83819906]
[1672932730001,17.0,13.364,13.352,20.83819906]
[1672932730194,20.0,13.365,13.352,20.83819906]
[1672932731256,17.0,13.364,13.352,20.83819906]
[1672932731903,20.0,13.362,13.352,20.83819906]
[1672932732516,20.0,13.362,13.352,20.0]
[1672932733270,112.1302,13.363,13.352,20.0]
[1672932733479,112.1302,13.363,13.352,76.21]
[1672932733671,12.71,13.36,13.352,76.21]
[1672932734003,12.71,13.36,13.352,20.0]
[1672932734217,12.71,13.36,13.351,20.0]
[1672932734419,12.71,13.36,13.351,0.83819906]
[1672932734618,12.71,13.36,13.346,76.24]
[1672932734824,12.71,13.36,13.347,20.0]
[1672932735031,12.71,13.36,13.348,57.06819906]
[1672932735469,12.71,13.36,13.349,17.0]
[1672932735659,12.71,13.36,13.35,57.05819906]